bitfinex/quotes_ETHUSD_20250413
["timestamp","ask_amount","ask_price","bid_price","bid_amount"]
[1744541443841,0.72010032,1617.4,1617.3,6.18314]
[1744541445460,0.72010032,1617.4,1617.3,6.98434]
[1744541447501,0.72010032,1617.4,1617.3,7.53434]
[1744541447803,0.72010032,1617.4,1617.3,10.73175338]
[1744541447992,0.02,1617.4,1617.3,10.73175338]
[1744541448392,0.02,1617.4,1617.3,13.73175338]
[1744541449516,0.02,1617.4,1617.3,19.74085721]
[1744541450518,1e-05,1617.4,1617.3,19.74085721]
[1744541450714,1e-05,1617.4,1617.3,19.85392042]
[1744541452987,1e-05,1617.4,1617.3,19.30392042]
[1744541453822,1e-05,1617.4,1617.3,19.85392042]
[1744541454824,1e-05,1617.4,1617.3,19.30392042]
[1744541455385,1e-05,1617.4,1617.3,18.50272042]
[1744541456521,0.76881,1617.4,1617.3,0.11306321]
[1744541456720,0.76881,1617.4,1617.2,12.19236383]
[1744541456924,0.7688,1617.3,1617.2,6.00910383]
[1744541457220,7.66232142,1617.3,1617.2,6.00910383]
[1744541457385,1.47918142,1617.3,1617.2,6.00910383]
[1744541457793,7.66245142,1617.3,1617.0,59.09]
[1744541459321,7.66245142,1617.3,1617.0,65.27416]
[1744541459525,7.66245142,1617.3,1617.0,64.66276186]
[1744541459821,9.04698156,1617.3,1617.0,58.47860186]
[1744541460022,6.94909,1617.2,1617.0,58.47860186]
[1744541460224,6.18442,1617.0,1616.7,6.062]
[1744541460634,6.18442,1617.0,1616.7,12.24739]
[1744541460807,0.70685667,1616.9,1616.7,12.24739]
[1744541461007,6.18442,1617.0,1616.7,12.24739]
[1744541461211,6.95023,1616.9,1616.7,6.062]
[1744541461415,1.47215667,1616.8,1616.7,6.062]
[1744541461738,6.95035,1616.8,1616.7,6.062]
[1744541461911,6.18543,1616.7,1616.6,6.00910383]
[1744541462111,12.37108,1616.7,1616.4,6.063]
[1744541462308,6.95124,1616.6,1616.4,6.063]
[1744541462499,6.1862,1616.5,1616.4,6.063]
[1744541463003,6.88218595,1616.5,1616.4,6.063]
[1744541463393,7.64148595,1616.5,1616.2,5.0]
[1744541464012,13.82788595,1616.5,1616.1,12.25052]
[1744541464229,13.82788595,1616.5,1616.1,20.88289638]
[1744541465263,7.64148595,1616.5,1616.1,20.88289638]
[1744541465961,7.64148595,1616.5,1616.2,6.18727]
[1744541467559,13.82788595,1616.5,1616.2,6.18727]
[1744541468379,0.7532,1616.2,1615.9,12.19741383]
[1744541468518,0.7532,1616.2,1616.0,6.063]
[1744541468724,0.69255587,1616.1,1616.0,6.063]
[1744541469139,13.12817,1616.2,1616.0,6.063]
[1744541469349,6.94108,1616.1,1615.7,6.1892]
[1744541469636,6.94108,1616.1,1615.8,6.18882]
[1744541469863,0.69245784,1616.0,1615.8,1.844091]
[1744541470167,8.11916396,1616.7,1616.0,6.18799]
[1744541470168,0.7532,1616.3,1616.0,6.18799]
[1744541470542,0.69245784,1616.2,1616.0,6.18799]
[1744541471570,0.69245784,1616.2,1616.0,12.3759]
[1744541471768,0.69245784,1616.2,1616.0,6.18795]
[1744541474598,0.69245784,1616.2,1616.0,12.37592]
[1744541474786,0.69245784,1616.2,1616.0,6.18795]
[1744541475097,0.69245784,1616.2,1616.1,6.18773]
[1744541475272,0.69245784,1616.2,1616.0,6.18795]
[1744541476305,0.69245784,1616.2,1615.9,6.18842]
[1744541476457,6.18779,1616.1,1615.8,21.38667383]
[1744541476803,0.68530317,1616.0,1615.8,21.38667383]
[1744541477096,6.18779,1616.1,1615.8,21.38667383]
[1744541477304,0.68530317,1616.0,1615.8,21.38667383]
[1744541477472,0.68530317,1616.0,1615.8,24.21011121]
[1744541477799,6.18779,1616.1,1615.8,24.21011121]
[1744541478171,0.68530317,1616.0,1615.8,24.21011121]
[1744541478572,7.00481,1616.5,1616.1,6.18773]
[1744541478777,13.19123,1616.5,1616.1,6.18757]
[1744541479084,13.891711,1616.5,1616.1,6.18757]
[1744541479288,12.37336,1616.4,1616.1,6.18757]
[1744541480006,7.00558,1616.3,1616.0,6.18804]
[1744541480210,7.62918512,1616.3,1616.0,6.18804]
[1744541480709,7.62918512,1616.3,1616.0,12.37601]
[1744541480890,1.44220512,1616.3,1616.0,6.18797]
[1744541481217,0.62360512,1616.3,1616.2,6.18735]
[1744541482367,0.8186,1616.6,1616.4,6.18631]
[1744541482697,0.62360512,1616.5,1616.4,12.37276]
[1744541482893,0.62360512,1616.5,1616.4,6.18631]
[1744541484381,0.62360512,1616.5,1616.4,7.423629]
[1744541485695,0.757,1616.7,1616.4,13.610079]
[1744541485896,0.62360512,1616.6,1616.5,6.1862]
[1744541486099,0.757,1616.7,1616.5,6.1862]
[1744541486291,0.62360512,1616.6,1616.5,6.1862]
[1744541486494,0.757,1616.7,1616.5,6.1862]
[1744541486823,0.62675396,1616.6,1616.5,6.1862]
[1744541487022,0.62675396,1616.6,1616.5,13.6121829]
[1744541487170,0.757,1617.1,1616.9,6.18434]
[1744541487370,0.757,1617.1,1616.9,12.36877]
[1744541487565,6.18316,1617.3,1617.0,6.18429]
[1744541487566,0.7685,1617.2,1617.0,6.18429]
[1744541488398,0.7685,1617.2,1617.0,12.36841]
[1744541488595,6.95134,1617.4,1617.1,6.1839]
[1744541488799,0.76851,1617.4,1617.1,12.36768]
[1744541489116,0.76851,1617.4,1617.2,6.18349]
[1744541490299,6.95149,1617.4,1617.0,6.18413]
[1744541491327,6.18319,1617.3,1617.0,6.18413]
[1744541491629,6.18319,1617.3,1617.0,14.211627]
[1744541492000,6.18319,1617.3,1617.0,8.027497]
[1744541492441,6.18319,1617.3,1617.0,14.211607]
[1744541492734,6.18319,1617.3,1617.0,8.027487]
[1744541494014,1e-05,1617.4,1617.3,6.18314]
[1744541494716,1e-05,1617.4,1617.3,7.419802]
[1744541494916,1e-05,1617.4,1617.3,13.482802]
[1744541495319,1e-05,1617.4,1617.3,14.270502]
[1744541496622,1e-05,1617.4,1617.3,14.73265363]
[1744541496834,1e-05,1617.4,1617.3,14.270502]
[1744541497828,1e-05,1617.4,1617.3,7.299662]
[1744541498244,1e-05,1617.4,1617.3,6.063]
[1744541498931,6.18277,1617.4,1617.3,6.063]
[1744541499132,1e-05,1617.4,1617.3,6.063]
[1744541501769,0.64436723,1617.4,1617.3,6.063]
[1744541507058,6.82712723,1617.4,1617.3,6.063]
[1744541510188,7.64372723,1617.4,1617.3,6.063]
[1744541511084,7.64372723,1617.4,1617.1,6.18385]
[1744541511290,7.64372723,1617.4,1617.1,12.24485]
[1744541511470,13.82672723,1617.4,1617.1,6.18385]
[1744541511694,13.82672723,1617.4,1617.1,12.24485]
[1744541511870,7.64372723,1617.4,1617.1,12.24485]
[1744541512082,13.82665723,1617.4,1617.1,6.18385]
[1744541512291,13.82665723,1617.4,1617.1,12.24485]
[1744541513483,13.82665723,1617.4,1617.1,6.061]
[1744541513484,6.18316,1617.3,1617.1,6.061]
[1744541513671,13.18232,1617.4,1617.1,6.061]
[1744541513870,0.64484978,1617.3,1617.1,6.061]
[1744541514045,13.18232,1617.4,1617.1,6.061]
[1744541514248,0.64484978,1617.3,1617.1,6.061]
[1744541514448,6.99944,1617.4,1617.1,6.061]
[1744541514664,0.64484978,1617.3,1617.1,6.061]
[1744541514999,0.81661,1617.4,1617.2,6.18318]
[1744541515200,1e-05,1617.4,1617.2,6.18318]
[1744541515355,1e-05,1617.4,1617.1,20.28283774]
[1744541515558,6.18288,1617.4,1617.1,13.30463774]
[1744541515754,6.96928,1617.4,1617.1,12.24479]
[1744541516712,0.64367024,1617.3,1617.1,12.24479]
[1744541516860,6.96928,1617.4,1617.1,12.24479]
[1744541517200,6.96928,1617.4,1617.1,6.061]
[1744541517201,0.64367024,1617.3,1617.1,6.061]
[1744541517502,6.18328,1617.3,1617.1,6.061]
[1744541517686,0.64367024,1617.2,1617.1,6.061]
[1744541518296,6.96928,1617.4,1617.1,6.061]
[1744541518463,0.64367024,1617.3,1617.1,6.061]
[1744541518665,6.96928,1617.4,1617.1,6.061]
[1744541518999,0.64367024,1617.3,1617.1,6.061]
[1744541519501,0.64367024,1617.2,1617.1,6.061]
[1744541519675,0.78641,1617.4,1617.2,6.18351]
[1744541519875,0.64367024,1617.3,1617.2,6.18351]
[1744541520076,0.78641,1617.4,1617.2,6.18351]
[1744541520278,0.64367024,1617.3,1617.1,12.2449]
[1744541520512,6.96918,1617.4,1617.1,18.42869]
[1744541520813,0.64367024,1617.3,1617.1,12.24479]
[1744541521007,0.64367024,1617.3,1617.1,18.42859]
[1744541521213,0.78641,1617.4,1617.2,6.18352]
[1744541522018,6.96918,1617.4,1617.1,12.24478]
[1744541522780,6.96918,1617.4,1617.1,18.42853]
[1744541523633,0.78641,1617.4,1617.2,6.18352]
[1744541525030,6.96921,1617.4,1617.1,12.24475]
[1744541525600,6.96921,1617.4,1617.1,18.4285]
[1744541526334,0.78641,1617.4,1617.2,6.18349]
[1744541526795,6.18326,1617.3,1617.1,6.061]
[1744541528933,12.3666,1617.3,1617.1,6.061]
[1744541530635,6.18326,1617.3,1617.1,6.061]
[1744541531133,0.756,1617.2,1617.1,6.061]
[1744541531630,1.39957196,1617.2,1617.1,6.061]
[1744541532918,1.39957196,1617.2,1617.0,6.18397]
[1744541535735,0.64357196,1617.2,1617.0,13.604997]
[1744541535903,13.1524,1617.4,1617.0,13.604997]
[1744541536105,0.6419008,1617.3,1617.0,14.411497]
[1744541536299,13.1524,1617.4,1617.0,14.411497]
[1744541536500,6.8250808,1617.3,1617.0,6.99047]
[1744541536928,0.6419008,1617.3,1617.0,13.1746]
[1744541537238,13.1522,1617.4,1617.1,6.1839]
[1744541537398,0.64209742,1617.2,1617.1,6.1839]
[1744541537595,6.96927,1617.4,1617.1,6.1839]
[1744541538045,0.64209742,1617.3,1617.1,6.1839]
[1744541538239,0.64209742,1617.3,1617.1,7.501337]
[1744541538438,6.96927,1617.4,1617.1,7.501337]
[1744541538625,0.59000603,1617.2,1617.1,7.501337]
[1744541538830,1e-05,1617.4,1617.2,6.18333]
[1744541539140,1e-05,1617.4,1617.2,12.36673]
[1744541539368,1e-05,1617.4,1617.2,13.7351467]
[1744541539576,1e-05,1617.4,1617.2,7.5517467]
[1744541540562,1e-05,1617.4,1617.2,1.3684167]
[1744541540776,6.18289,1617.4,1617.1,6.18379]
[1744541541371,6.18289,1617.4,1617.1,12.36753]
[1744541541576,6.18289,1617.4,1617.1,6.18375]
[1744541541963,6.96177,1617.3,1617.0,6.18423]
[1744541542349,0.7785,1617.3,1617.0,12.36836]
[1744541542549,0.7785,1617.3,1617.0,13.605196]
[1744541544990,6.96179,1617.3,1617.0,7.420966]
[1744541545151,13.14523,1617.3,1617.0,7.420966]
[1744541545491,6.96179,1617.3,1617.0,7.420966]
[1744541546356,0.58927644,1617.2,1617.0,7.420966]
[1744541546853,0.58927644,1617.2,1617.0,1.236836]
[1744541546854,6.77280644,1617.2,1617.0,1.236836]
[1744541547082,6.77280644,1617.2,1616.9,12.19368383]
[1744541547790,12.95658644,1617.2,1616.9,12.19368383]
[1744541547975,6.77288644,1617.2,1616.9,6.00910383]
[1744541548176,12.95662644,1617.2,1616.9,12.19367383]
[1744541549288,12.95659644,1617.2,1616.9,12.19364383]
[1744541549494,6.77288644,1617.2,1616.9,12.19364383]
[1744541549665,6.18401,1617.1,1616.9,6.00910383]
[1744541551388,6.18401,1617.1,1616.8,13.0536]
[1744541551587,7.57752144,1617.0,1616.8,6.06]
[1744541551965,0.8049,1617.0,1616.8,12.24502]
[1744541552680,0.8049,1617.0,1616.8,6.06]
[1744541553092,0.58681056,1616.9,1616.8,6.06]
[1744541553455,0.8049,1617.0,1616.8,12.24505]
[1744541554278,0.58681056,1616.9,1616.8,12.24505]
[1744541554487,0.58681056,1616.9,1616.8,14.68899738]
[1744541556204,0.58681056,1616.9,1616.8,8.50394738]
[1744541556557,0.58681056,1616.9,1616.7,6.00910383]
[1744541556762,6.77152056,1616.9,1616.7,6.00910383]
[1744541556968,6.98932,1617.0,1616.7,12.19429383]
[1744541557169,6.98932,1617.0,1616.7,12.37052]
[1744541557884,0.58562676,1616.9,1616.7,12.37052]
[1744541558084,0.58562676,1616.9,1616.7,8.107262]
[1744541559905,0.58562676,1616.9,1616.7,14.292572]
[1744541562209,0.58562676,1616.9,1616.7,6.18519]
[1744541563809,1e-05,1617.4,1616.7,6.18519]
[1744541563810,0.82121,1617.4,1617.1,6.18355]
[1744541564011,0.82121,1617.4,1617.2,6.18338]
[1744541564224,0.53574952,1617.3,1617.2,6.18338]
[1744541564593,0.82121,1617.4,1617.1,6.18355]
[1744541564800,0.53574952,1617.3,1617.1,6.18355]
[1744541565103,0.53574952,1617.2,1617.1,6.18355]
[1744541565299,0.82121,1617.4,1617.1,8.026125]
[1744541565488,0.53574952,1617.3,1617.1,8.026125]
[1744541565689,0.82121,1617.4,1617.1,8.026125]
[1744541565889,0.53574952,1617.3,1617.1,8.026125]
[1744541566089,0.82121,1617.4,1617.1,8.026125]
[1744541566387,0.53574952,1617.3,1617.1,8.026125]
[1744541566588,0.82121,1617.4,1617.1,8.026125]
[1744541566899,0.53574952,1617.3,1617.1,8.026125]
[1744541567103,0.82121,1617.4,1617.1,8.026125]
[1744541567306,0.53574952,1617.3,1617.1,8.026125]
[1744541567506,0.82121,1617.4,1617.1,8.026125]
[1744541567916,0.53574952,1617.3,1617.1,8.026125]
[1744541568225,0.82121,1617.4,1617.1,8.026125]
[1744541568395,0.82121,1617.4,1617.2,0.8026125]
[1744541568720,0.82121,1617.4,1617.1,14.209895]
[1744541569099,0.82121,1617.4,1617.1,8.026125]
[1744541569281,0.82121,1617.4,1617.1,14.209875]
[1744541570838,6.18316,1617.3,1617.0,18.25130383]
[1744541570998,6.18316,1617.3,1617.0,24.43542383]
[1744541572044,0.82121,1617.4,1617.1,6.1838]
[1744541572341,0.83091,1617.4,1617.1,6.1838]
[1744541572516,0.83091,1617.4,1617.1,12.3676]
[1744541572715,6.18357,1617.2,1617.0,12.06710383]
[1744541572939,6.99387,1617.2,1617.0,12.06710383]
[1744541575141,6.9942,1617.1,1616.8,6.18501]
[1744541575653,13.17827,1617.1,1616.7,12.24308]
[1744541575942,0.53762935,1617.0,1616.7,12.24308]
[1744541576102,6.72191935,1617.0,1616.7,18.42839]
[1744541576742,6.72191935,1617.0,1616.7,12.24308]
[1744541576958,6.72191935,1617.0,1616.7,13.545238]
[1744541577456,6.72191935,1617.0,1616.7,19.730558]
[1744541577664,6.72191935,1617.0,1616.7,13.545238]
[1744541578065,6.72191935,1617.0,1616.7,19.730518]
[1744541578229,0.53762935,1617.0,1616.7,19.730518]
[1744541578564,0.53762935,1617.0,1616.7,13.545238]
[1744541578726,0.53762935,1617.0,1616.8,7.5394638]
[1744541579059,6.99421,1617.1,1616.8,7.5394638]
[1744541579356,0.53772835,1617.0,1616.8,7.5394638]
[1744541584366,0.53772835,1617.0,1616.8,13.7243938]
[1744541584781,0.53772835,1617.0,1616.8,7.5394538]
[1744541587874,0.53772835,1617.0,1616.8,8.3662538]
[1744541588776,6.72201835,1617.0,1616.8,0.8268]
[1744541588966,6.72201835,1617.0,1616.7,12.24338]
[1744541589145,12.90657835,1617.0,1616.7,12.24338]
[1744541589346,12.90648835,1617.0,1616.7,12.24338]
[1744541590384,6.72201835,1617.0,1616.7,12.24338]
[1744541590705,6.72201835,1617.0,1616.7,12.2433]
[1744541591386,6.72201835,1617.0,1616.7,18.42862]
[1744541591681,6.72201835,1617.0,1616.7,20.354162]
[1744541592098,0.53772835,1617.0,1616.8,7.01158]
[1744541592297,0.53772835,1617.0,1616.9,6.18467]
[1744541592498,13.16778,1617.2,1616.8,7.01158]
[1744541592700,0.53495786,1617.0,1616.8,7.01158]
[1744541592866,6.18394,1617.1,1616.8,9.1296252]
[1744541593066,0.53495786,1616.9,1616.8,9.1296252]
[1744541593300,6.18394,1617.1,1616.8,9.1296252]
[1744541593800,0.53515579,1617.0,1616.8,9.1296252]
[1744541594099,0.53515579,1617.0,1616.8,15.3145552]
[1744541594306,0.53515579,1617.0,1616.8,9.1296252]
[1744541595113,0.53515579,1617.0,1616.9,6.18467]
[1744541595606,0.53555163,1617.0,1616.9,12.36934]
[1744541595909,0.8004,1617.2,1616.9,12.36934]
[1744541596407,0.53555163,1617.1,1616.9,12.36934]
[1744541596608,0.8004,1617.2,1616.9,12.36934]
[1744541596803,0.53555163,1617.1,1616.9,12.36934]
[1744541597105,0.8004,1617.2,1616.9,12.36934]
[1744541597306,0.53584849,1617.0,1616.9,12.36934]
[1744541597610,0.53584849,1617.0,1616.9,13.90075852]
[1744541597808,12.36663,1617.3,1616.9,13.90075852]
[1744541598005,0.53584849,1617.2,1616.9,12.36934]
[1744541600017,6.71938849,1617.2,1616.8,9.1298352]
[1744541600223,12.36914,1617.0,1616.7,18.25240383]
[1744541600398,6.18457,1617.0,1616.7,24.43768383]
[1744541600720,0.53584849,1616.9,1616.7,24.43769383]
[1744541603943,0.53535374,1616.8,1616.7,24.43769383]
[1744541604150,13.19265,1617.1,1616.7,21.42859]
[1744541604350,0.53535374,1617.0,1616.7,21.42859]
[1744541604511,0.53535374,1617.0,1616.7,23.646529]
[1744541607712,6.71973374,1617.0,1616.7,12.24328]
[1744541607909,6.9987,1616.9,1616.7,6.058]
[1744541608337,0.53535374,1616.8,1616.7,6.058]
[1744541609038,6.18557,1616.7,1616.4,19.01830383]
[1744541609243,6.99947,1616.7,1616.4,18.25060383]
[1744541609438,13.18516,1616.7,1616.4,12.06410383]
[1744541609647,0.53287952,1616.6,1616.4,12.06410383]
[1744541609825,6.1862,1616.5,1616.4,12.06410383]
[1744541610032,6.18677,1616.4,1616.1,58.43099826]
[1744541610217,7.53387952,1616.3,1616.1,5.39899826]
[1744541610422,1.34677952,1616.3,1616.1,5.39899826]
[1744541611857,0.53287952,1616.3,1616.1,12.35432826]
[1744541612065,0.53287952,1616.3,1616.2,1.23543283]
[1744541612215,7.00011,1616.5,1616.2,7.42265283]
[1744541612416,0.52297886,1616.4,1616.2,6.18722]
[1744541613764,0.52297886,1616.4,1616.1,12.35432826]
[1744541614321,0.52297886,1616.4,1616.1,12.35429826]
[1744541614742,0.52297886,1616.4,1616.2,6.18719]
[1744541616486,0.52297886,1616.4,1616.1,13.1429]
[1744541616657,0.52297886,1616.4,1616.1,14.45691833]
[1744541617169,0.52297886,1616.4,1616.2,6.18733]
[1744541618695,0.52297886,1616.4,1616.2,12.37451]
[1744541619370,0.52297886,1616.4,1616.3,6.18697]
[1744541619677,0.52297886,1616.4,1616.3,6.97287]
[1744541619862,0.52297886,1616.4,1616.3,8.907592]
[1744541620029,0.7575,1616.7,1616.4,6.18637]
[1744541620234,0.52228554,1616.6,1616.4,12.37274]
[1744541620548,0.52228554,1616.5,1616.4,12.37274]
[1744541620747,0.7575,1616.7,1616.4,12.37274]
[1744541620965,0.52228554,1616.6,1616.4,12.37274]
[1744541621289,0.7575,1616.7,1616.4,13.8820762]
[1744541621469,0.52228554,1616.5,1616.4,13.8820762]
[1744541621637,6.94295,1616.7,1616.4,6.18637]
[1744541621967,0.52228554,1616.6,1616.4,6.18637]
[1744541622174,6.94295,1616.7,1616.4,6.18637]
[1744541622377,0.52228554,1616.6,1616.4,12.37283]
[1744541622670,0.7575,1616.7,1616.4,13.8821752]
[1744541622856,0.52228554,1616.5,1616.4,7.6957152]
[1744541623363,6.94295,1616.7,1616.4,7.6957152]
[1744541623677,0.52228554,1616.6,1616.4,6.18637]
[1744541624044,13.12862,1616.7,1616.4,6.18637]
[1744541624244,0.52495953,1616.6,1616.4,6.18637]
[1744541624458,13.12862,1616.7,1616.4,6.18637]
[1744541624684,0.52495953,1616.5,1616.4,6.18637]
[1744541624840,6.94295,1616.7,1616.4,7.6957562]
[1744541625035,0.52495953,1616.6,1616.4,7.6957562]
[1744541625278,6.18599,1616.6,1616.3,6.18687]
[1744541625440,0.52495953,1616.5,1616.3,12.37372]
[1744541625639,6.94303,1616.7,1616.4,6.18658]
[1744541625977,0.52495953,1616.6,1616.4,13.18593]
[1744541626142,13.16126,1616.8,1616.4,14.504523]
[1744541626342,0.52495953,1616.7,1616.4,13.18593]
[1744541626976,0.52495953,1616.7,1616.4,6.99935]
[1744541627186,6.71051953,1616.7,1616.4,6.99935]
[1744541627340,12.37119,1616.7,1616.4,6.99935]
[1744541627663,6.18628,1616.5,1616.2,12.19633383]
[1744541627836,6.18628,1616.5,1616.2,18.38356383]
[1744541628040,0.52495953,1616.4,1616.2,18.38356383]
[1744541629281,0.52495953,1616.4,1616.2,12.19633383]
[1744541629444,7.51907953,1616.4,1616.2,6.00910383]
[1744541630890,1.33225953,1616.4,1616.2,6.00910383]
[1744541631094,1.33225953,1616.4,1616.2,12.19644383]
[1744541631397,0.52317689,1616.3,1616.2,12.19644383]
[1744541631562,0.8073,1616.4,1616.2,12.19644383]
[1744541631769,0.52317689,1616.3,1616.2,12.19644383]
[1744541631968,0.8073,1616.4,1616.2,12.19644383]
[1744541632193,0.52009764,1616.3,1616.2,12.19644383]
[1744541632394,6.99317,1616.6,1616.2,20.97548721]
[1744541632569,0.52009764,1616.5,1616.3,6.18692]
[1744541633189,0.52009764,1616.5,1616.3,12.37384]
[1744541633360,6.95764,1616.8,1616.4,6.18658]
[1744541633557,1.21625785,1616.7,1616.4,12.37316]
[1744541634095,0.52049385,1616.7,1616.5,6.18613]
[1744541634301,0.52049385,1616.7,1616.5,12.37222]
[1744541634597,0.52049385,1616.7,1616.5,6.18609]
[1744541635699,0.52049385,1616.7,1616.4,19.2312]
[1744541637065,0.52049385,1616.7,1616.5,6.18609]
[1744541638485,0.52049385,1616.7,1616.5,6.18604]
[1744541644826,0.52049385,1616.7,1616.5,12.37209]
[1744541645835,0.52049385,1616.7,1616.5,6.18604]
[1744541646028,0.52049385,1616.7,1616.5,12.37212]
[1744541646233,0.52049385,1616.7,1616.5,6.18604]
[1744541648542,6.70606385,1616.7,1616.4,13.04474]
[1744541648741,6.18596,1616.6,1616.4,6.054]
[1744541648909,7.01846,1616.6,1616.4,6.054]
[1744541649103,0.5248516,1616.5,1616.4,6.054]
[1744541649330,0.5248516,1616.5,1616.4,12.24058]
[1744541649731,7.01764,1616.8,1616.4,12.24058]
[1744541649732,7.01764,1616.8,1616.5,6.18615]
[1744541649937,0.701764,1616.7,1616.5,6.18615]
[1744541650244,7.01764,1616.8,1616.5,6.18615]
[1744541650701,7.01764,1616.8,1616.4,12.24058]
[1744541650702,6.18558,1616.7,1616.4,12.24058]
[1744541650898,12.37123,1616.7,1616.4,12.24058]
[1744541651431,6.18558,1616.7,1616.4,12.24058]
[1744541651633,0.5248516,1616.6,1616.4,12.24058]
[1744541651828,6.18558,1616.7,1616.4,12.24058]
[1744541652031,0.52445549,1616.6,1616.4,12.24058]
[1744541652446,7.505901,1616.7,1616.4,12.24058]
[1744541652623,0.52445549,1616.6,1616.4,12.24058]
[1744541652824,7.505901,1616.7,1616.4,12.24058]
[1744541653125,0.52445549,1616.6,1616.4,12.24058]
[1744541653324,0.52445549,1616.6,1616.4,18.42702]
[1744541653666,7.01764,1616.8,1616.5,6.18619]
[1744541653958,13.20286,1616.8,1616.5,6.18619]
[1744541655127,13.20288,1616.8,1616.5,6.18619]
[1744541656059,7.01764,1616.8,1616.5,6.18619]
[1744541657666,13.20284,1616.8,1616.5,6.18619]
[1744541659864,6.98639,1617.0,1616.4,0.7705]
[1744541660022,6.98639,1617.0,1616.6,0.7843]
[1744541660224,6.98639,1617.0,1616.7,6.18531]
[1744541660640,6.98639,1617.0,1616.7,12.3706]
[1744541661136,6.98639,1617.0,1616.7,6.18529]
[1744541662062,6.18439,1617.0,1616.7,6.18529]
[1744541662465,6.18439,1617.0,1616.7,12.37057]
[1744541663426,6.18439,1617.0,1616.7,14.291057]
[1744541664781,6.18439,1617.0,1616.7,14.291067]
[1744541665278,6.18439,1617.0,1616.7,8.105767]
[1744541665645,0.802,1617.1,1616.6,6.8343]
[1744541665987,6.18429,1617.0,1616.7,6.18523]
[1744541666279,6.98596,1617.1,1616.8,6.18491]
[1744541666472,0.52405941,1617.0,1616.8,6.18491]
[1744541668485,0.52405941,1617.0,1616.7,12.37065]
[1744541668681,0.52405941,1617.0,1616.7,14.291145]
[1744541669180,6.18492,1616.9,1616.6,13.02007]
[1744541669478,7.46344874,1616.9,1616.6,13.02007]
[1744541670168,7.46344874,1616.9,1616.6,19.20575]
[1744541670375,7.46344874,1616.9,1616.6,13.01998]
[1744541670672,7.46344874,1616.9,1616.6,19.20567]
[1744541671063,0.52712874,1616.9,1616.8,6.18505]
[1744541671265,13.1196,1617.1,1616.8,6.18505]
[1744541671590,0.52960412,1617.0,1616.8,6.18505]
[1744541672947,0.52960412,1617.0,1616.8,6.18494]
[1744541673181,6.18358,1617.2,1616.8,7.01664]
[1744541673482,7.503272,1617.2,1616.9,6.18464]
[1744541673690,0.52960412,1617.1,1616.9,6.18464]
[1744541673888,7.503272,1617.2,1616.9,6.18464]
[1744541674054,0.52960412,1617.1,1616.9,6.18464]
[1744541674454,7.503272,1617.2,1616.9,6.18464]
[1744541674695,0.52960412,1617.1,1616.9,6.18464]
[1744541674896,7.503272,1617.2,1616.9,6.18464]
[1744541675096,0.52960412,1617.1,1616.9,6.18464]
[1744541675281,7.503272,1617.2,1616.9,6.18464]
[1744541675474,0.52960412,1617.1,1617.0,6.18429]
[1744541675793,7.01334,1617.3,1617.0,6.18429]
[1744541675998,0.53098999,1617.1,1617.0,6.18429]
[1744541676162,7.01334,1617.3,1617.0,6.18429]
[1744541676364,0.53108897,1617.1,1617.0,6.18429]
[1744541676566,7.01334,1617.3,1617.0,6.18429]
[1744541676766,0.53108897,1617.1,1617.0,6.18429]
[1744541676969,7.01334,1617.3,1617.0,7.421183]
[1744541677176,7.01334,1617.3,1617.0,6.18429]
[1744541677382,0.53108897,1617.2,1617.0,6.18429]
[1744541690580,6.95371,1617.1,1616.9,6.046]
[1744541690800,13.67159245,1617.1,1616.9,6.046]
[1744541691613,7.48737245,1617.1,1616.9,6.046]
[1744541692523,8.8544717,1617.1,1616.9,6.046]
[1744541692816,8.8544717,1617.1,1616.8,6.18503]
[1744541693693,15.0387017,1617.1,1616.7,19.23668]
[1744541693916,15.0385617,1617.1,1616.8,6.18503]
[1744541694120,8.8544517,1617.1,1616.7,19.23668]
[1744541694294,7.48735245,1617.1,1616.7,22.01340612]
[1744541694822,7.48735245,1617.1,1616.8,6.185]
[1744541696521,7.48735245,1617.1,1616.8,12.36993]
[1744541697824,7.48735245,1617.1,1616.8,6.18493]
[1744541698722,13.67143245,1617.1,1616.7,13.05133]
[1744541698922,6.1847,1616.9,1616.7,6.045]
[1744541699228,0.53287062,1616.8,1616.7,12.23038]
[1744541699602,6.18467,1616.9,1616.7,6.045]
[1744541699916,0.53188084,1616.8,1616.7,6.045]
[1744541700923,1.28508084,1616.8,1616.7,6.045]
[1744541701724,7.47013084,1616.8,1616.7,6.045]
[1744541701923,6.18543,1616.7,1616.4,6.96314]
[1744541702235,0.53118793,1616.6,1616.4,12.23254]
[1744541702596,6.18543,1616.7,1616.4,12.23254]
[1744541702797,0.53049495,1616.5,1616.4,12.23254]
[1744541703005,6.18543,1616.7,1616.4,12.23254]
[1744541705206,0.53049495,1616.6,1616.4,12.23254]
[1744541705529,6.18543,1616.7,1616.4,12.23254]
[1744541705731,0.53049495,1616.6,1616.4,12.23254]
[1744541705905,6.18543,1616.7,1616.4,12.23254]
[1744541706102,0.53049495,1616.6,1616.4,12.23254]
[1744541706338,6.18543,1616.7,1616.4,12.23254]
[1744541706542,0.52722795,1616.6,1616.4,12.23254]
[1744541706742,6.18543,1616.7,1616.4,12.23254]
[1744541707046,6.93827,1616.8,1616.5,6.18609]
[1744541707548,0.52722795,1616.7,1616.5,6.18609]
[1744541707947,0.52722795,1616.7,1616.4,21.8444968]
[1744541708251,0.52722795,1616.7,1616.4,21.8443768]
[1744541710149,0.52722795,1616.7,1616.5,6.18608]
[1744541711042,0.52722795,1616.7,1616.4,21.8446468]
[1744541711458,6.71275795,1616.7,1616.4,15.6580668]
[1744541711625,6.71275795,1616.7,1616.4,12.23258]
[1744541713220,6.18596,1616.6,1616.4,6.046]
[1744541713428,6.96976,1616.6,1616.4,6.046]
[1744541713748,0.52722795,1616.5,1616.4,6.046]
[1744541713952,6.71342795,1616.5,1616.4,6.046]
[1744541714317,12.89999795,1616.5,1616.3,6.00910383]